fUST/lending_fUST_20250207
["ID","MTS","AMOUNT","RATE_DAILY","PERIOD"]
[352067148,1738926638636,-215.772047,0.000132,2]
[352067149,1738926638646,-354.7326672,0.000132,2]
[352067150,1738926638662,-153.0,0.000132,2]
[352067151,1738926638672,-215.772047,0.000132,2]
[352067152,1738926638682,-154.5548552,0.000132,2]
[352067153,1738926638692,-354.7326672,0.000132,2]
[352067154,1738926638702,-154.5548552,0.000132,2]
[352067155,1738926638712,-224.3768216,0.000132,2]
[352067156,1738926638721,-215.772047,0.000132,2]
[352067157,1738926638730,-215.772047,0.000132,2]
[352067158,1738926638740,-154.5548552,0.000132,2]
[352067159,1738926638750,-354.7326672,0.000132,2]
[352067160,1738926638759,-291.1515911,0.000132,2]
[352067161,1738926638769,-154.5548552,0.000132,2]
[352067162,1738926638778,-354.7326672,0.000132,2]
[352067163,1738926638788,-215.772047,0.000132,2]
[352067164,1738926638797,-154.5548552,0.000132,2]
[352067165,1738926638807,-215.772047,0.000132,2]
[352067166,1738926638816,-154.5548552,0.000132,2]
[352067167,1738926638826,-263.7241485,0.000132,2]
[352067168,1738926638835,-1913.48405202,0.000132,2]
[352067169,1738926638844,-9297.37258818,0.000132,2]
[352067170,1738926638854,-724.892,0.00013242,2]
[352067171,1738926638863,-176.9115071,0.00013242,2]
[352067172,1738926638872,-541.9094457,0.00013273,2]
[352067173,1738926638882,-162.76911445,0.00013273,2]
[352067174,1738926638891,-614.64817462,0.00013273,2]
[352067175,1738926638901,-500.0,0.00013273,2]
[352067176,1738926638910,-500.0,0.00013273,2]
[352067177,1738926638919,-267.78789365,0.00013273,2]
[352067178,1738926638928,-500.0,0.00013273,2]
[352067179,1738926638937,-500.0,0.00013273,2]
[352067180,1738926638947,-500.0,0.00013273,2]
[352067181,1738926638956,-500.0,0.00013273,2]
[352067182,1738926638965,-500.0,0.00013273,2]
[352067183,1738926638974,-500.0,0.00013273,2]
[352067184,1738926638983,-500.0,0.00013273,2]
[352067185,1738926638993,-505.43864197,0.00013273,2]
[352067186,1738926639003,-500.0,0.00013273,2]
[352067187,1738926639012,-151.0,0.00013273,2]
[352067188,1738926639022,-151.0,0.00013273,2]
[352067189,1738926639031,-292.41366,0.00013273,2]
[352067190,1738926639040,-292.41366,0.00013273,2]
[352067191,1738926639049,-500.0,0.00013299,2]
[352067192,1738926639058,-220.06366597,0.00013299,2]
[352067193,1738926639067,-500.0,0.00013299,2]
[352067194,1738926639076,-500.0,0.00013299,2]
[352067195,1738926639085,-214.97522906,0.00013299,2]
[352067196,1738926639094,-910795.32864584,0.000133,5]
[352067197,1738926639107,-10661.25117734,0.000133,5]
[352067198,1738926639125,-122898.06465226,0.000133,5]
[352067213,1738926640533,-74308.41191732,0.000133,5]
[352067226,1738926643444,-194.193567,0.00013273,2]
[352067227,1738926643454,-26546.85012317,0.000133,5]
[352067233,1738926646382,-695.97360314,0.000133,5]
[352067246,1738927497389,345.33,0.00010959,2]
[352067249,1738927628120,-192.6576184,0.00012741,2]
[352067250,1738927628154,-3955.69231744,0.00012741,2]
[352067251,1738927638118,-851.65006416,0.00012741,2]
[352067252,1738927638145,-269.40904878,0.0001287,2]
[352067253,1738927638171,-4440.13366958,0.00012919,2]
[352067254,1738927641510,665.03,0.00010959,2]
[352067255,1738927651975,182.53,0.00010959,2]
[352067256,1738927662454,152.11,0.00010959,2]
[352067257,1738927672922,760.59,0.00010959,2]
[352067264,1738927693614,151.42,0.00010959,2]
[352067268,1738927704112,757.13,0.00010959,2]
[352067284,1738927772101,-4311.77305156,0.000125,2]
[352067286,1738927785602,3776.4727791,0.00012071,2]
[352067332,1738927832604,-4786.22971069,0.00012375,2]
[352067334,1738927832614,-116.02374844,0.000125,2]
[352067336,1738927832624,-300.0,0.00012999,2]
[352067338,1738927832634,-7438.69753278,0.00013,2]
[352067341,1738927832644,-481.28314502,0.00013056,2]
[352067343,1738927832654,-419.02535164,0.00013065,2]
[352067345,1738927832663,-208.01628147,0.0001307,2]
[352067347,1738927832672,-1001.11074636,0.00013169,2]
[352067349,1738927832681,-3558.67088583,0.000132,2]
[352067351,1738927832691,-236.55844223,0.000132,2]
[352067369,1738927832734,-366.93511575,0.00013162,2]
[352067372,1738927832876,-500.0,0.00013162,2]
[352067374,1738927832885,-8131.07688715,0.000132,2]
[352067376,1738927832894,-500.0,0.00013273,2]
[352067378,1738927832904,-471.11020245,0.00013273,2]
[352067380,1738927832913,-500.0,0.00013273,2]
[352067382,1738927832923,-270.00154155,0.00013273,2]
[352067384,1738927832933,-500.0,0.00013273,2]
[352067386,1738927832943,-451.58237279,0.00013299,2]
[352067388,1738927832952,-422916.61695153,0.000133,5]
[352067393,1738927832991,-500.0,0.00013162,2]
[352067395,1738927833000,-500.0,0.00013162,2]
[352067397,1738927833010,-406226.86068205,0.000133,5]
[352067400,1738927833027,-384.67002,0.00013162,2]
[352067453,1738927838547,-115.32998,0.00013162,2]
[352067454,1738927838556,-437.66973407,0.00013162,2]
[352067455,1738927839014,-62.33026593,0.00013162,2]
[352067456,1738927839024,-500.0,0.00013162,2]
[352067457,1738927839035,-500.0,0.00013162,2]
[352067458,1738927839044,-500.0,0.00013162,2]
[352067459,1738927839054,-500.0,0.00013162,2]
[352067460,1738927839065,-629.32374103,0.00013162,2]
[352067461,1738927839076,-500.0,0.00013162,2]
[352067462,1738927839085,-500.0,0.00013162,2]
[352067463,1738927839095,-500.0,0.00013162,2]
[352067464,1738927839105,-500.0,0.00013162,2]
[352067465,1738927839115,-500.0,0.00013162,2]
[352067466,1738927839124,-500.0,0.00013162,2]
[352067467,1738927839133,-500.0,0.00013162,2]
[352067468,1738927839145,-500.0,0.00013162,2]
[352067469,1738927839154,-500.0,0.00013162,2]
[352067470,1738927839163,-500.0,0.00013162,2]
[352067471,1738927839172,-500.0,0.00013162,2]
[352067472,1738927839181,-500.0,0.00013162,2]
[352067473,1738927839190,-500.0,0.00013162,2]
[352067474,1738927839200,-500.0,0.00013162,2]
[352067475,1738927839209,-500.0,0.00013162,2]
[352067476,1738927839218,-500.0,0.00013162,2]
[352067477,1738927839227,-500.0,0.00013162,2]
[352067478,1738927839235,-500.0,0.00013162,2]
[352067479,1738927839245,-500.0,0.00013162,2]
[352067480,1738927839254,-500.0,0.00013162,2]
[352067481,1738927839263,-500.0,0.00013162,2]
[352067482,1738927839272,-500.0,0.00013162,2]
[352067483,1738927839282,-500.0,0.00013162,2]
[352067484,1738927839291,-500.0,0.00013162,2]
[352067485,1738927839300,-500.0,0.00013162,2]
[352067486,1738927839309,-500.0,0.00013162,2]
[352067487,1738927839318,-500.0,0.00013162,2]
[352067488,1738927839328,-500.0,0.00013162,2]
[352067489,1738927839337,-500.0,0.00013162,2]
[352067490,1738927839346,-500.0,0.00013162,2]
[352067491,1738927839355,-500.0,0.00013162,2]
[352067492,1738927839364,-500.0,0.00013162,2]
[352067493,1738927839373,-500.0,0.00013162,2]
[352067494,1738927839382,-500.0,0.00013162,2]
[352067495,1738927839391,-500.0,0.00013162,2]
[352067496,1738927839400,-500.0,0.00013162,2]
[352067497,1738927839409,-500.0,0.00013162,2]
[352067498,1738927839418,-500.0,0.00013162,2]
[352067499,1738927839427,-500.0,0.00013162,2]
[352067500,1738927839437,-500.0,0.00013162,2]
[352067501,1738927839446,-500.0,0.00013162,2]
[352067502,1738927839458,-500.0,0.00013162,2]
[352067503,1738927839467,-500.0,0.00013162,2]
[352067504,1738927839476,-500.0,0.00013162,2]
[352067505,1738927839485,-500.0,0.00013162,2]
[352067506,1738927839494,-500.0,0.00013162,2]
[352067507,1738927839503,-500.0,0.00013162,2]
[352067508,1738927839512,-500.0,0.00013162,2]
[352067509,1738927839521,-500.0,0.00013162,2]
[352067510,1738927839531,-500.0,0.00013162,2]
[352067511,1738927839541,-500.0,0.00013162,2]
[352067512,1738927839551,-500.0,0.00013162,2]
[352067513,1738927839561,-500.0,0.00013162,2]
[352067514,1738927839571,-500.0,0.00013162,2]
[352067515,1738927839580,-881103.67463888,0.000133,5]
[352067516,1738927839658,-21.40640204,0.000133,5]
[352067517,1738927839670,-307.5116374,0.000133,5]
[352067551,1738927844299,-151.0,0.000132,2]
[352067552,1738927844308,-151.0,0.000132,2]
[352067553,1738927844320,-10.2633,0.000132,2]
[352067554,1738927844334,-140.7367,0.000132,2]
[352067555,1738927844343,-151.0,0.000132,2]
[352067556,1738927844353,-151.0,0.000132,2]
[352067557,1738927844363,-151.0,0.000132,2]
[352067558,1738927844372,-151.0,0.000132,2]
[352067559,1738927844382,-1375.83677771,0.000133,5]
[352067560,1738927844417,-1044.46308297,0.000133,5]
[352067566,1738927903613,3576.60749469,0.00012293,2]
[352067575,1738928719799,1000.0,0.00019,120]
[352067576,1738928839110,-642.675067,0.00012169,2]
[352067577,1738928839133,-300.0,0.00012292,2]
[352067578,1738928839155,-3981.43067281,0.00012293,2]
[352067579,1738928852103,-204.77867729,0.00012293,2]
[352067580,1738928852132,-691.17585471,0.00012293,2]
[352067581,1738928947105,-16337.77861073,0.00012293,2]
[352067582,1738928958112,-2800.0,0.00011972,2]
[352067583,1738928958134,-591.05508498,0.0001217,2]
[352067584,1738928963043,4881.1592362,0.00012087,2]
[352068085,1738929038571,-256.15,0.00012542,2]
[352068086,1738929038580,-300.0,0.00012897,2]
[352068087,1738929038589,-443.85,0.00012897,2]
[352068088,1738929038661,-56.15,0.00012897,2]
[352068089,1738929038670,-500.0,0.00012897,2]
[352068090,1738929038679,-500.0,0.00012897,2]
[352068091,1738929038688,-500.0,0.00012897,2]
[352068092,1738929038697,-500.0,0.00012897,2]
[352068093,1738929038706,-500.0,0.00012897,2]
[352068094,1738929038716,-500.0,0.00012897,2]
[352068095,1738929038725,-500.0,0.00012897,2]
[352068096,1738929038734,-500.0,0.00012897,2]
[352068097,1738929038743,-500.0,0.00012897,2]
[352068098,1738929038752,-500.0,0.00012897,2]
[352068099,1738929038762,-500.0,0.00012897,2]
[352068100,1738929038771,-500.0,0.00012897,2]
[352068101,1738929038780,-472.17443756,0.00012897,2]
[352068102,1738929038789,-500.0,0.00012897,2]
[352068103,1738929038798,-500.0,0.00012897,2]
[352068104,1738929038807,-500.0,0.00012897,2]
[352068105,1738929038816,-213.30865014,0.00012897,2]
[352068106,1738929038825,-500.0,0.00012897,2]
[352068107,1738929038834,-500.0,0.00012897,2]
[352068108,1738929038843,-500.0,0.00012897,2]
[352068109,1738929038852,-500.0,0.00012897,2]
[352068110,1738929038861,-500.0,0.00012897,2]
[352068111,1738929038870,-500.0,0.00012897,2]
[352068112,1738929038879,-500.0,0.00012897,2]
[352068113,1738929038888,-500.0,0.00012897,2]
[352068114,1738929038897,-425.00000011,0.00012897,2]
[352068115,1738929038906,-500.0,0.00012897,2]
[352068116,1738929038915,-500.0,0.00012897,2]
[352068117,1738929038924,-500.0,0.00012897,2]
[352068118,1738929038933,-500.0,0.00012897,2]
[352068119,1738929038942,-500.0,0.00012897,2]
[352068120,1738929038951,-500.0,0.00012897,2]
[352068121,1738929038960,-500.0,0.00012897,2]
[352068122,1738929038969,-500.0,0.00012897,2]
[352068123,1738929038979,-500.0,0.00012897,2]
[352068124,1738929038988,-426.50794723,0.000129,2]
[352068125,1738929038997,-13264.03974987,0.00012995,2]
[352068126,1738929039007,-3647.42,0.00013,2]
[352068127,1738929039016,-1000.0,0.00013,13]
[352068128,1738929039025,-7438.69753278,0.00013,2]
[352068129,1738929039035,-408.05890914,0.00013062,2]
[352068130,1738929039043,-380.1064186,0.000131,2]
[352068131,1738929039053,-215.772047,0.000131,2]
[352068132,1738929039062,-153.0,0.000131,2]
[352068133,1738929039071,-354.7326672,0.000131,2]
[352068134,1738929039081,-154.5548552,0.000131,2]
[352068135,1738929039091,-153.0,0.000131,2]
[352068136,1738929039101,-848.7088579,0.00013166,2]
[352068137,1738929039110,-154.5548552,0.000132,2]
[352068138,1738929039119,-215.772047,0.000132,2]
[352068139,1738929039128,-154.5548552,0.000132,2]
[352068140,1738929039138,-1913.48405202,0.000132,2]
[352068141,1738929039147,-8460.60905526,0.000132,2]
[352068142,1738929039157,-724.17260175,0.000132,2]
[352068143,1738929039166,-724.17260173,0.000132,2]
[352068144,1738929039175,-724.17260173,0.00013245,2]
[352068145,1738929039184,-500.0,0.00013273,2]
[352068146,1738929039194,-500.0,0.00013273,2]
[352068147,1738929039203,-162.76911445,0.00013273,2]
[352068148,1738929039212,-614.64817462,0.00013273,2]
[352068149,1738929039221,-500.0,0.00013273,2]
[352068150,1738929039231,-500.0,0.00013273,2]
[352068151,1738929039240,-500.0,0.00013273,2]
[352068152,1738929039249,-500.0,0.00013273,2]
[352068153,1738929039258,-500.0,0.00013273,2]
[352068154,1738929039267,-500.78145389,0.00013273,2]
[352068155,1738929039276,-500.0,0.00013273,2]
[352068156,1738929039286,-500.0,0.00013273,2]
[352068157,1738929039295,-550.7627586,0.00013298,2]
[352068158,1738929039304,-514.49256872,0.00013299,2]
[352068159,1738929039313,-891277.78030863,0.000133,5]
[352068189,1738929040705,-604.09263182,0.000133,5]
[352068191,1738929040717,-28682.05650351,0.000133,5]
[352068213,1738929044000,-458.9689655,0.00013298,2]
[352068214,1738929044010,-4636.5310345,0.000133,5]
[352068215,1738929044021,-602.5475125,0.000133,5]
[352068231,1738929046718,-1212.0032,0.000133,5]
[352068232,1738929046771,-5092.85790045,0.000133,5]
[352068233,1738929126229,408.05890914,0.00012192,2]
[352068238,1738929543282,186.12,0.00010959,2]
[352068239,1738929553794,155.1,0.00010959,2]
[352068240,1738929564317,775.52,0.00010959,2]
[352068241,1738930025138,-550.46754341,0.0001127,2]
[352068242,1738930025159,-692.03744027,0.00011384,2]
[352068243,1738930025180,-500.0,0.00011732,2]
[352068244,1738930025201,-500.0,0.00011732,2]
[352068245,1738930025222,-386.13082336,0.00011732,2]
[352068246,1738930025244,-300.0,0.0001175,2]
[352068247,1738930025265,-2728.51573262,0.00011751,2]
[352068248,1738930031130,-891.99862552,0.00011751,2]
[352068249,1738930041187,-468.43330903,0.00011633,2]
[352068259,1738930148167,-1398.16965299,0.00011633,2]
[352068260,1738930148188,-1119.88667299,0.00011751,2]
[352068261,1738930148209,-300.0,0.00011851,2]
[352068262,1738930148232,-20791.36030357,0.00011852,2]
[352068263,1738930148252,-500.0,0.00011967,2]
[352068264,1738930148274,-330.24160417,0.00011967,2]
[352068265,1738930148295,-301.4787389,0.00011967,2]
[352068266,1738930148315,-500.0,0.00011967,2]
[352068267,1738930148335,-500.0,0.00011967,2]
[352068268,1738930148356,-500.0,0.00011967,2]
[352068269,1738930148376,-500.0,0.00011967,2]
[352068270,1738930148396,-500.0,0.00011967,2]
[352068271,1738930148417,-500.0,0.00011967,2]
[352068272,1738930148437,-500.0,0.00011967,2]
[352068273,1738930148458,-500.0,0.00011967,2]
[352068274,1738930148478,-500.0,0.00011967,2]
[352068275,1738930148498,-500.0,0.00011967,2]
[352068276,1738930148518,-500.0,0.00011967,2]
[352068277,1738930148538,-500.0,0.00011967,2]
[352068278,1738930148558,-500.0,0.00011967,2]
[352068279,1738930148578,-500.0,0.00011967,2]
[352068280,1738930148598,-500.0,0.00011967,2]
[352068281,1738930148618,-500.0,0.00011967,2]
[352068282,1738930148638,-500.0,0.00011967,2]
[352068283,1738930148659,-500.0,0.00011967,2]
[352068284,1738930148680,-500.0,0.00011967,2]
[352068285,1738930148700,-500.0,0.00011967,2]
[352068286,1738930148720,-200.0,0.00011967,2]
[352068287,1738930148741,-500.0,0.00011967,2]
[352068288,1738930148766,-500.0,0.00011967,2]
[352068289,1738930148790,-515.21209903,0.00011967,2]
[352068290,1738930148816,-515.21209903,0.00011967,2]
[352068291,1738930148840,-515.21209903,0.00011967,2]
[352068292,1738930148864,-515.21209903,0.00011967,2]
[352068293,1738930148885,-515.21209903,0.00011967,2]
[352068294,1738930148912,-515.21209903,0.00011967,2]
[352068295,1738930148935,-515.21209903,0.00011967,2]
[352068296,1738930148958,-515.21209903,0.00011967,2]
[352068297,1738930148981,-515.21209903,0.00011967,2]
[352068298,1738930149003,-515.21209903,0.00011967,2]
[352068299,1738930149024,-515.21209903,0.00011967,2]
[352068300,1738930149046,-515.21209903,0.00011967,2]
[352068301,1738930149068,-515.21209903,0.00011967,2]
[352068303,1738930149090,-515.21209903,0.00011967,2]
[352068305,1738930149112,-515.21209903,0.00011967,2]
[352068306,1738930149132,-515.21209903,0.00011967,2]
[352068307,1738930149265,-515.21209903,0.00011967,2]
[352068308,1738930149285,-515.21209903,0.00011967,2]
[352068309,1738930149306,-515.21209903,0.00011967,2]
[352068310,1738930149327,-515.21209903,0.00011967,2]
[352068311,1738930149347,-515.21209903,0.00011967,2]
[352068312,1738930149367,-515.21209903,0.00011967,2]
[352068313,1738930149389,-515.21209903,0.00011967,2]
[352068314,1738930149410,-515.21209903,0.00011967,2]
[352068316,1738930149430,-515.21209903,0.00011967,2]
[352068317,1738930149449,-515.21209903,0.00011967,2]
[352068319,1738930149470,-515.21209903,0.00011967,2]
[352068321,1738930149491,-515.21209903,0.00011967,2]
[352068323,1738930149512,-515.21209903,0.00011967,2]
[352068325,1738930149533,-515.21209903,0.00011967,2]
[352068327,1738930149553,-515.21209903,0.00011967,2]
[352068328,1738930149573,-515.21209903,0.00011967,2]
[352068329,1738930149593,-515.21209903,0.00011967,2]
[352068330,1738930149612,-515.21209903,0.00011967,2]
[352068331,1738930149633,-515.21209903,0.00011967,2]
[352068332,1738930149653,-515.21209903,0.00011967,2]
[352068333,1738930149673,-515.21209903,0.00011967,2]
[352068334,1738930149693,-515.21209903,0.00011967,2]
[352068335,1738930149713,-515.21209903,0.00011967,2]
[352068336,1738930149733,-515.21209903,0.00011967,2]
[352068337,1738930149753,-515.21209903,0.00011967,2]
[352068338,1738930149773,-515.21209903,0.00011967,2]
[352068339,1738930149793,-515.21209903,0.00011967,2]
[352068340,1738930149812,-515.21209903,0.00011967,2]
[352068341,1738930149837,-515.21209903,0.00011967,2]
[352068342,1738930149859,-515.21209903,0.00011967,2]
[352068343,1738930149881,-515.21209903,0.00011967,2]
[352068344,1738930149902,-515.21209903,0.00011967,2]
[352068345,1738930149923,-515.21209903,0.00011967,2]
[352068346,1738930149942,-515.21209903,0.00011967,2]
[352068347,1738930149962,-500.0,0.00011967,2]
[352068348,1738930149984,-500.0,0.00011967,2]
[352068349,1738930150006,-500.0,0.00011967,2]
[352068350,1738930150030,-500.0,0.00011967,2]
[352068351,1738930150052,-500.0,0.00011967,2]
[352068352,1738930150072,-500.0,0.00011967,2]
[352068353,1738930150092,-500.0,0.00011967,2]
[352068354,1738930150113,-500.0,0.00011967,2]
[352068355,1738930150134,-500.0,0.00011967,2]
[352068356,1738930150154,-500.0,0.00011967,2]
[352068357,1738930150175,-500.0,0.00011967,2]
[352068358,1738930150198,-500.0,0.00011967,2]
[352068359,1738930150218,-500.0,0.00011967,2]
[352068360,1738930150239,-404.82563353,0.00011967,2]
[352068361,1738930150260,-500.0,0.00011967,2]
[352068362,1738930150280,-500.0,0.00011967,2]
[352068363,1738930150301,-245.62351999,0.00011968,2]
[352068364,1738930150322,-1439.4185164,0.00011972,2]
[352068365,1738930154105,-1070.0959888,0.00011972,2]
[352068366,1738930154228,-390.4854948,0.00011972,2]
[352068399,1738930231965,-300.0,0.00012899,2]
[352068402,1738930231976,-380.1064186,0.000129,2]
[352068404,1738930231986,-306.0,0.000129,2]
[352068405,1738930231996,-709.4653344,0.000129,2]
[352068406,1738930232006,-431.544094,0.000129,2]
[352068407,1738930232016,-154.5548552,0.000129,2]
[352068408,1738930232025,-7438.69753278,0.00013,2]
[352068409,1738930232034,-154.5548552,0.00013,2]
[352068410,1738930232045,-215.772047,0.00013,2]
[352068411,1738930232054,-1000.0,0.00013,13]
[352068425,1738930232224,-154.5548552,0.00013,2]
[352068427,1738930232233,-506.9236381,0.00013,2]
[352068429,1738930232243,-154.5548552,0.00013,2]
[352068431,1738930232253,-431.544094,0.00013,2]
[352068433,1738930232263,-309.1097104,0.00013,2]
[352068436,1738930232275,-154.5548552,0.00013,2]
[352068438,1738930232285,-215.772047,0.00013,2]
[352068440,1738930232296,-866.59335871,0.00013024,2]
[352068442,1738930232306,-500.0,0.0001308,2]
[352068444,1738930232316,-6234.85345764,0.000131,2]
[352068446,1738930232325,-154.5548552,0.000131,2]
[352068448,1738930232335,-154.5548552,0.000131,2]
[352068450,1738930232345,-154.5548552,0.000131,2]
[352068452,1738930232355,-158.1719307,0.000131,2]
[352068454,1738930232364,-154.5548552,0.000131,2]
[352068456,1738930232374,-361.4772414,0.000131,2]
[352068457,1738930232384,-354.7326672,0.000131,2]
[352068458,1738930232393,-153.0,0.000131,2]
[352068459,1738930232402,-153.0,0.000131,2]
[352068460,1738930232412,-215.772047,0.000131,2]
[352068461,1738930232422,-3174.56781144,0.00013108,2]
[352068498,1738930237822,-500.0,0.00013107,2]
[352068500,1738930237831,-500.0,0.00013107,2]
[352068502,1738930237842,-500.0,0.00013107,2]
[352068504,1738930237856,-500.0,0.00013107,2]
[352068506,1738930237866,-375.11100925,0.00013107,2]
[352068508,1738930237876,-500.0,0.00013107,2]
[352068511,1738930237887,-500.0,0.00013107,2]
[352068513,1738930237896,-500.0,0.00013107,2]
[352068515,1738930237906,-500.0,0.00013107,2]
[352068517,1738930237915,-500.0,0.00013107,2]
[352068519,1738930237925,-10089.47193843,0.00013108,2]
[352068521,1738930237936,-848.7088579,0.00013166,2]
[352068523,1738930237945,-154.5548552,0.000132,2]
[352068525,1738930237955,-154.5548552,0.000132,2]
[352068527,1738930237964,-354.5958847,0.000132,2]
[352068528,1738930237974,-306.0,0.000132,2]
[352068529,1738930237983,-154.5548552,0.000132,2]
[352068530,1738930237993,-154.5548552,0.000132,2]
[352068531,1738930238003,-215.772047,0.000132,2]
[352068532,1738930238012,-154.5548552,0.000132,2]
[352068533,1738930238022,-154.5548552,0.000132,2]
[352068534,1738930238031,-8460.60905526,0.000132,2]
[352068535,1738930238040,-2262.64169787,0.000132,2]
[352068536,1738930238050,-724.17260175,0.000132,2]
[352068537,1738930238059,-724.17260173,0.000132,2]
[352068538,1738930238069,-709.1154408,0.00013205,2]
[352068540,1738930238078,-724.17260173,0.00013245,2]
[352068542,1738930238088,-500.0,0.00013273,2]
[352068544,1738930238097,-500.0,0.00013273,2]
[352068547,1738930238107,-505.43864197,0.00013273,2]
[352068549,1738930238116,-500.0,0.00013273,2]
[352068551,1738930238126,-162.76911445,0.00013273,2]
[352068553,1738930238135,-614.64817462,0.00013273,2]
[352068555,1738930238145,-500.0,0.00013273,2]
[352068557,1738930238155,-267.78789365,0.00013273,2]
[352068559,1738930238165,-500.0,0.00013273,2]
[352068561,1738930238174,-500.0,0.00013273,2]
[352068563,1738930238183,-500.0,0.00013273,2]
[352068565,1738930238192,-500.0,0.00013273,2]
[352068567,1738930238202,-500.0,0.00013273,2]
[352068569,1738930238211,-500.0,0.00013273,2]
[352068571,1738930238220,-500.0,0.00013273,2]
[352068573,1738930238230,-219.35186006,0.00013273,2]
[352068575,1738930238239,-500.0,0.00013273,2]
[352068577,1738930238249,-500.0,0.00013273,2]
[352068579,1738930238258,-168.03243976,0.00013273,2]
[352068581,1738930238268,-540.0415979,0.00013273,2]
[352068583,1738930238278,-474.26793102,0.00013298,2]
[352068585,1738930238287,-154.34777062,0.00013299,2]
[352068587,1738930238298,-46324.32809659,0.000133,5]
[352068589,1738930238308,-838793.89194836,0.000133,5]
[352068608,1738930238491,-15409.83391369,0.000133,5]
[352068610,1738930238503,-923.43172791,0.000133,5]
[352068611,1738930238516,-1500.0,0.000133,5]
[352068612,1738930238527,-4097.80733666,0.000133,5]
[352068619,1738930238685,-2289.05095236,0.000133,5]
[352068622,1738930238697,-1180.72107185,0.000133,5]
[352068624,1738930238708,-35166.05763542,0.000133,5]
[352068650,1738930239961,-96952.36422925,0.000133,5]
[352068651,1738930239974,-39606.0,0.000133,5]
[352068662,1738930242886,-29464.59409067,0.000133,5]
[352068663,1738930242901,-10349.0,0.000133,5]
[352068664,1738930242912,-499.9967325,0.000133,5]
[352068690,1738930245972,-5219.81168254,0.000133,5]
[352068691,1738930246010,-52.04814545,0.000133,5]
[352068692,1738930246021,-16351.85144107,0.000133,5]
[352068693,1738930253561,1204.5135052,0.00011972,2]
[352068702,1738931239097,-3955.69231744,0.00011852,2]
[352068703,1738931239121,-1003.06835804,0.00011972,2]
[352068706,1738931345164,-2187.66675147,0.00011852,2]
[352068707,1738931346098,-2812.33324853,0.00011852,2]
[352068708,1738931346119,-411.64618501,0.00011972,2]
[352068709,1738931350121,-80.77195175,0.00011972,2]
[352068717,1738931411374,129.01078828,0.00011972,2]
[352068751,1738931432124,-2370.98921172,0.00011972,2]
[352068752,1738931432134,-4311.77305156,0.000125,2]
[352068753,1738931432143,-300.0,0.00012893,2]
[352068754,1738931432153,-13264.03974987,0.00012899,2]
[352068756,1738931432163,-500.0,0.00012999,2]
[352068758,1738931432172,-500.0,0.00012999,2]
[352068759,1738931432181,-500.0,0.00012999,2]
[352068761,1738931432191,-375.11100925,0.00012999,2]
[352068763,1738931432200,-500.0,0.00012999,2]
[352068765,1738931432209,-500.0,0.00012999,2]
[352068767,1738931432218,-500.0,0.00012999,2]
[352068769,1738931432230,-500.0,0.00012999,2]
[352068771,1738931432239,-500.0,0.00012999,2]
[352068773,1738931432249,-500.0,0.00012999,2]
[352068775,1738931432259,-7438.69753278,0.00013,2]
[352068776,1738931432271,-5000.0,0.00013,2]
[352068777,1738931432281,-10000.0,0.00013,13]
[352068778,1738931432291,-431.544094,0.00013,2]
[352068779,1738931432301,-709.1154408,0.00013041,2]
[352068780,1738931432310,-848.7088579,0.00013166,2]
[352068781,1738931432320,-306.0,0.00013178,2]